bitfinex/quotes_BTCUSD_20240727
["timestamp","ask_amount","ask_price","bid_price","bid_amount"]
[1722114771915,0.0009994,68633.0,68624.0,0.116576]
[1722114772167,0.1439,68637.0,68622.0,0.07512979]
[1722114772379,0.0009994,68629.0,68624.0,0.116576]
[1722114772554,0.0009994,68629.0,68622.0,0.07512979]
[1722114772788,0.02287063,68634.0,68622.0,0.07512979]
[1722114773000,0.1439,68637.0,68622.0,0.07512979]
[1722114773200,0.14936833,68637.0,68622.0,0.07512979]
[1722114773820,0.14936833,68637.0,68624.0,0.116576]
[1722114774022,0.14936833,68637.0,68624.0,0.233153]
[1722114774227,0.14936833,68637.0,68622.0,0.07512979]
[1722114774671,0.0009994,68627.0,68622.0,0.07512979]
[1722114774873,0.14936833,68637.0,68625.0,0.116575]
[1722114775084,0.14936833,68637.0,68632.0,0.07512979]
[1722114775509,0.0009994,68633.0,68632.0,0.07512979]
[1722114775717,0.14936833,68637.0,68614.0,0.07512979]
[1722114775718,0.0009994,68615.0,68614.0,0.07512979]
[1722114776128,0.06,68625.0,68614.0,0.07512979]
[1722114776338,0.0821,68624.0,68614.0,0.07512979]
[1722114776540,0.06,68623.0,68600.0,0.30836479]
[1722114776749,0.1430994,68613.0,68600.0,0.07512979]
[1722114776969,0.1421,68613.0,68600.0,0.07512979]
[1722114777195,0.1430994,68613.0,68600.0,0.07512979]
[1722114777417,0.1430994,68613.0,68605.0,0.233217]
[1722114777638,0.1430994,68613.0,68600.0,0.07512979]
[1722114778583,0.1421,68613.0,68600.0,0.07512979]
[1722114778822,0.1421,68613.0,68593.0,0.07512979]
[1722114779045,0.1430994,68613.0,68601.0,0.07512979]
[1722114779271,0.1421,68613.0,68601.0,0.07512979]
[1722114779744,0.258695,68613.0,68593.0,0.07512979]
[1722114780144,0.258695,68613.0,68588.0,0.005843]
[1722114780145,0.6094814,68613.0,68588.0,0.005843]
[1722114780392,0.491886,68613.0,68588.0,0.005843]
[1722114780592,0.1421,68589.0,68588.0,0.45662172]
[1722114780797,0.0009994,68591.0,68588.0,0.45662172]
[1722114780998,0.0009994,68591.0,68590.0,0.116635]
[1722114781148,0.0009994,68591.0,68590.0,0.349905]
[1722114781352,0.0009994,68591.0,68590.0,0.116635]
[1722114781950,0.0009994,68591.0,68588.0,0.01130482]
[1722114782136,0.0821,68598.0,68597.0,0.116623]
[1722114782340,0.0821,68598.0,68592.0,0.116631]
[1722114782567,0.0821,68598.0,68588.0,0.01130482]
[1722114782568,0.0009994,68593.0,68591.0,0.07512979]
[1722114784345,0.0009994,68592.0,68591.0,0.07512979]
[1722114784557,0.0821,68598.0,68591.0,0.07512979]
[1722114784558,0.0009994,68593.0,68591.0,0.07512979]
[1722114786028,0.0009994,68593.0,68588.0,0.005843]
[1722114786436,0.0821,68598.0,68588.0,0.005843]
[1722114786867,0.06,68597.0,68588.0,0.005843]
[1722114787063,0.0009994,68593.0,68589.0,0.07473979]
[1722114787261,0.005,68591.0,68589.0,0.07473979]
[1722114787935,0.005,68591.0,68588.0,0.005843]
[1722114788147,0.00038999,68590.0,68588.0,0.005843]
[1722114788747,0.0009994,68573.0,68572.0,0.116665]
[1722114788960,0.0009994,68575.0,68569.0,0.07512979]
[1722114789255,0.00038999,68589.0,68588.0,0.005845]
[1722114789512,0.00038999,68589.0,68561.0,0.301766]
[1722114789513,0.1490994,68589.0,68570.0,0.07512979]
[1722114789686,0.1481,68589.0,68577.0,0.07512979]
[1722114789894,0.1481,68589.0,68570.0,0.07512979]
[1722114789895,0.1481,68589.0,68570.0,0.13358279]
[1722114790215,0.1481,68589.0,68573.0,0.116663]
[1722114790393,0.1481,68589.0,68570.0,0.13358279]
[1722114790709,0.1481,68589.0,68572.0,0.116665]
[1722114790913,0.1481,68589.0,68573.0,0.116663]
[1722114791113,0.0009994,68584.0,68572.0,0.23333]
[1722114791265,0.1481,68589.0,68570.0,0.13358279]
[1722114791467,0.1481,68589.0,68575.0,0.11666]
[1722114791676,0.1481,68589.0,68584.0,0.07512979]
[1722114792017,0.02288676,68586.0,68585.0,0.349929]
[1722114792247,0.02288676,68586.0,68585.0,0.116643]
[1722114792449,0.02288676,68586.0,68577.0,0.07512979]
[1722114792450,0.02288676,68586.0,68562.0,0.13672979]
[1722114792652,0.02288676,68586.0,68578.0,0.07512979]
[1722114793224,0.02288676,68586.0,68585.0,0.07512979]
[1722114793367,0.02288676,68586.0,68581.0,0.233298]
[1722114793566,0.02288676,68586.0,68578.0,0.07512979]
[1722114793828,0.02288676,68586.0,68583.0,0.116645]
[1722114794060,0.02288676,68586.0,68585.0,0.89163379]
[1722114794263,0.02288676,68586.0,68585.0,0.95553379]
[1722114794459,0.005,68591.0,68590.0,0.349905]
[1722114794799,0.005,68591.0,68590.0,0.583175]
[1722114796034,0.005,68591.0,68590.0,0.816445]
[1722114797203,0.0278803,68591.0,68590.0,0.816445]
[1722114798625,0.0278803,68591.0,68590.0,0.583175]
[1722114798832,0.005,68591.0,68590.0,0.583175]
[1722114800147,0.005,68591.0,68589.0,0.00886529]
[1722114800395,0.00038999,68590.0,68589.0,0.59204529]
[1722114800569,0.00038999,68590.0,68589.0,0.35877229]
[1722114800784,0.00038999,68590.0,68589.0,0.35969829]
[1722114801185,0.00038999,68590.0,68589.0,0.00978929]
[1722114801717,0.07908939,68590.0,68589.0,0.00978929]
[1722114801867,0.1381,68590.0,68589.0,0.00978929]
[1722114802068,0.16098458,68590.0,68589.0,0.00978929]
[1722114802454,0.1381,68590.0,68589.0,0.00978929]
[1722114803284,0.1390994,68590.0,68589.0,0.00978929]
[1722114803645,0.3390994,68590.0,68589.0,0.00978929]
[1722114805570,0.3381,68590.0,68589.0,0.00978929]
[1722114805915,0.36198505,68590.0,68589.0,0.00978929]
[1722114806133,0.3390994,68590.0,68589.0,0.00978929]
[1722114806820,0.3390994,68590.0,68589.0,0.32030029]
[1722114808103,0.3381,68590.0,68589.0,0.32030029]
[1722114808319,0.711005,68590.0,68589.0,0.32030029]
[1722114808556,0.944275,68590.0,68589.0,0.22560479]
[1722114808691,0.0777,68571.0,68557.0,0.000924]
[1722114808896,0.0009994,68564.0,68563.0,0.45077872]
[1722114809099,0.0604,68570.0,68557.0,0.000924]
[1722114809100,0.0009994,68562.0,68557.0,0.000924]
[1722114809528,0.0228941,68569.0,68557.0,0.000924]
[1722114809529,0.2348,68565.0,68557.0,0.000924]
[1722114809728,0.0828994,68562.0,68557.0,0.000924]
[1722114809936,0.0228941,68569.0,68568.0,0.898607]
[1722114810141,0.0228941,68569.0,68568.0,0.959407]
[1722114810347,0.2,68590.0,68589.0,0.349909]
[1722114810752,0.2,68590.0,68589.0,0.583182]
[1722114810952,0.2,68590.0,68589.0,0.816455]
[1722114811116,0.2,68590.0,68589.0,0.877255]
[1722114812391,0.169459,68590.0,68589.0,0.877255]
[1722114813659,0.19234,68590.0,68589.0,0.877255]
[1722114814699,0.19234,68590.0,68589.0,0.816455]
[1722114815224,0.19234,68590.0,68589.0,1.75640438]
[1722114815436,0.19234,68590.0,68589.0,2.02066609]
[1722114815616,0.015384,68590.0,68589.0,2.89117166]
[1722114815860,0.45077872,68618.0,68617.0,0.116589]
[1722114816148,0.45077872,68618.0,68604.0,0.07512979]
[1722114816342,0.06,68632.0,68598.0,0.03788522]
[1722114816343,0.0009994,68615.0,68598.0,0.03788522]
[1722114816573,0.07512979,68625.0,68590.0,0.07512979]
[1722114816574,0.0015542,68624.0,68607.0,0.233209]
[1722114816806,0.2348,68630.0,68601.0,0.233229]
[1722114816807,0.06,68627.0,68601.0,0.233229]
[1722114817024,0.0015542,68626.0,68601.0,0.233232]
[1722114817248,0.0789,68624.0,68605.0,0.116608]
[1722114817481,0.1404542,68604.0,68600.0,0.116617]
[1722114817704,0.1404542,68604.0,68598.0,0.23324]
[1722114817928,0.1404542,68604.0,68598.0,0.11662]
[1722114818186,0.1404542,68604.0,68595.0,0.116625]
[1722114818385,0.1404542,68604.0,68578.0,0.116654]
[1722114818386,0.0009994,68590.0,68578.0,0.116654]
[1722114818601,0.0009994,68590.0,68579.0,0.45077872]
[1722114818602,0.0009994,68586.0,68579.0,0.45077872]
[1722114818811,0.0009994,68586.0,68569.0,0.00886306]
[1722114818812,0.0015542,68590.0,68571.0,0.00575938]
[1722114819007,0.0015542,68590.0,68569.0,0.00886306]
[1722114819217,0.0015542,68590.0,68589.0,0.42503879]
[1722114819502,0.0009994,68632.0,68590.0,0.0015542]
[1722114819735,0.45077872,68639.0,68626.0,0.07512979]
[1722114819984,0.45077872,68639.0,68638.0,0.233107]
[1722114820194,0.0152806,68646.0,68635.0,0.233116]
[1722114820598,0.0152806,68646.0,68626.0,0.07512979]
[1722114820599,0.0152806,68646.0,68639.0,0.11655]
[1722114820846,0.0152806,68646.0,68595.0,0.08365519]
[1722114820847,0.233209,68608.0,68595.0,0.08365519]
[1722114821057,0.0789,68588.0,68570.0,0.0015542]
[1722114821265,0.0789,68588.0,68569.0,0.00886306]
[1722114821266,0.2948,68587.0,68569.0,0.00886306]
[1722114821484,0.06,68587.0,68570.0,0.0817]
[1722114821697,0.08705135,68612.0,68570.0,0.0817]
[1722114821698,0.04353412,68610.0,68593.0,0.233259]
[1722114821965,0.0019994,68612.0,68596.0,0.116623]
[1722114822184,0.0019994,68612.0,68585.0,0.07512979]
[1722114822185,0.06,68610.0,68585.0,0.07512979]
[1722114822412,0.02287586,68609.0,68592.0,0.19176079]
[1722114822655,0.02287586,68609.0,68592.0,0.07512979]
[1722114823512,0.06,68610.0,68592.0,0.07512979]
[1722114823731,0.0619994,68610.0,68606.0,0.07512979]
[1722114823933,0.06,68610.0,68599.0,0.07512979]
[1722114824139,0.06,68610.0,68606.0,0.07512979]
[1722114824350,0.0019994,68609.0,68606.0,0.07512979]
[1722114824561,0.06,68610.0,68606.0,0.07512979]
[1722114824975,0.0619994,68619.0,68606.0,0.07512979]
[1722114825180,0.06,68619.0,68615.0,0.07512979]
[1722114825390,0.06,68626.0,68615.0,0.07512979]
[1722114826035,0.0019994,68619.0,68615.0,0.07512979]
[1722114826378,0.0019994,68619.0,68606.0,0.07512979]
[1722114826379,0.0019994,68619.0,68603.0,0.0015542]
[1722114826636,0.07512979,68629.0,68585.0,0.07512979]
[1722114826637,0.06,68613.0,68600.0,0.233235]
[1722114826878,0.06,68613.0,68597.0,0.233245]
[1722114827122,0.07512979,68629.0,68597.0,0.233245]
[1722114827123,0.0019994,68639.0,68638.0,0.233107]
[1722114827359,0.0019994,68639.0,68618.0,0.1431]
[1722114827360,0.0619994,68644.0,68643.0,0.07512979]
[1722114827626,0.0152806,68646.0,68645.0,0.349624]
[1722114827843,0.0152806,68646.0,68645.0,0.582707]
[1722114828902,0.0152806,68646.0,68645.0,0.62619566]
[1722114829478,0.0152806,68646.0,68645.0,0.349624]
[1722114829676,0.0152806,68646.0,68645.0,1.65959]
[1722114829871,0.0013346,68669.0,68668.0,0.349507]
[1722114830175,0.0013346,68669.0,68668.0,0.815517]
[1722114830371,0.02419355,68669.0,68663.0,0.23302]
[1722114830559,0.0013346,68669.0,68668.0,0.116502]
[1722114830983,0.0013346,68669.0,68668.0,0.39031427]
[1722114831183,0.0013346,68669.0,68668.0,0.43233143]
[1722114831383,0.0013346,68669.0,68667.0,0.116503]
[1722114831582,0.0013346,68669.0,68663.0,0.0015542]
[1722114831806,0.0013346,68669.0,68668.0,0.116502]
[1722114831953,0.0013346,68669.0,68665.0,0.116506]
[1722114832153,0.0013346,68669.0,68663.0,0.0015542]
[1722114832154,0.0013346,68669.0,68668.0,0.349507]
[1722114832766,0.0013346,68669.0,68668.0,0.116502]
[1722114833045,0.0013346,68669.0,68668.0,0.431907]
[1722114833246,0.0013346,68669.0,68668.0,0.664912]
[1722114833794,0.0013346,68669.0,68668.0,0.70972524]
[1722114833993,0.02503292,68669.0,68668.0,0.70972524]
[1722114834401,0.02503292,68669.0,68668.0,0.71127944]
[1722114834818,0.02503292,68669.0,68668.0,0.75186204]
[1722114835016,0.0021746,68669.0,68668.0,0.70972524]
[1722114835434,0.0021746,68669.0,68668.0,0.349507]
[1722114835631,0.0021746,68669.0,68668.0,0.898417]
[1722114835836,0.0021746,68669.0,68668.0,1.21307911]
[1722114836253,0.00821,68678.0,68668.0,1.21463331]
[1722114836529,0.002,68699.0,68688.0,1.165874]
[1722114836736,0.002,68699.0,68688.0,1.56746425]
[1722114836949,0.002,68699.0,68688.0,1.61256569]
[1722114837120,0.002,68699.0,68688.0,1.84550269]
[1722114837323,0.002,68699.0,68688.0,1.61256569]
[1722114837526,0.002,68699.0,68688.0,1.69546569]
[1722114837730,0.002,68699.0,68688.0,1.70567569]
[1722114838030,0.002,68699.0,68688.0,1.00567569]
[1722114838434,0.03306005,68689.0,68688.0,1.00567569]
[1722114838790,0.01021,68689.0,68688.0,1.00567569]
[1722114839021,0.01021,68689.0,68688.0,0.96929969]
[1722114839229,0.01021,68689.0,68688.0,1.04097695]
[1722114839638,0.01021,68689.0,68688.0,1.27391395]
[1722114839842,0.002,68699.0,68698.0,0.81516]
[1722114840052,0.002,68699.0,68698.0,1.08971191]
[1722114840274,0.002,68699.0,68698.0,1.32296871]
[1722114840871,0.002,68699.0,68698.0,1.65587171]
[1722114841181,0.002,68709.0,68708.0,1.74791]
[1722114841380,0.002,68709.0,68708.0,2.063679]
[1722114841590,0.002,68709.0,68708.0,2.75167056]
[1722114841800,0.0001759,68713.0,68712.0,1.191847]
[1722114841981,0.0001759,68713.0,68712.0,1.291847]
[1722114842153,0.0001759,68713.0,68712.0,1.66963166]
[1722114842570,0.0001759,68713.0,68712.0,1.43677666]
[1722114843197,0.0001759,68713.0,68712.0,0.91772791]
[1722114843379,0.0001759,68713.0,68711.0,0.04219375]
[1722114843583,0.0001759,68713.0,68704.0,0.07512979]
[1722114843584,0.0001759,68713.0,68707.0,0.23287]
[1722114843778,0.0001759,68713.0,68704.0,0.07512979]
[1722114843779,0.0001759,68713.0,68712.0,0.04604288]
[1722114844813,0.0001759,68713.0,68706.0,0.04594522]
[1722114845442,0.0001759,68713.0,68697.0,0.07512979]
[1722114845770,0.0001759,68713.0,68712.0,0.07512979]
[1722114845972,0.0001759,68713.0,68706.0,0.0015542]
[1722114846212,0.0019994,68707.0,68706.0,0.0015542]
[1722114846410,0.02302294,68713.0,68697.0,0.00571078]
[1722114846629,0.0019994,68710.0,68700.0,0.07512979]
[1722114846840,0.02302294,68713.0,68709.0,0.07512979]
[1722114847034,0.02302294,68713.0,68712.0,0.116427]
[1722114847236,0.02302294,68713.0,68712.0,0.349282]
[1722114847465,0.02302294,68713.0,68712.0,0.62863358]
[1722114847669,0.02302294,68713.0,68712.0,0.39577858]
[1722114847880,0.02302294,68713.0,68712.0,1.74599086]
[1722114848092,0.0152806,68714.0,68713.0,0.814982]
[1722114848093,0.01146105,68714.0,68713.0,0.814982]
[1722114848295,0.002,68719.0,68718.0,0.116417]
[1722114848516,0.01523904,68775.0,68748.0,1.049101]
[1722114848733,0.0618,68777.0,68748.0,1.049101]
[1722114848734,0.00821,68776.0,68748.0,1.049101]
[1722114848954,0.00821,68776.0,68748.0,0.16617618]
[1722114848955,0.0019994,68765.0,68748.0,0.16617618]
[1722114849150,0.002,68769.0,68737.0,1.27406802]
[1722114849375,0.0019994,68765.0,68748.0,0.13856529]
[1722114849807,0.002,68769.0,68748.0,0.13856529]
[1722114850009,0.002,68769.0,68748.0,0.62682312]
[1722114850223,0.002,68769.0,68748.0,0.8957032]
[1722114850453,0.002,68769.0,68748.0,0.85955712]
[1722114850659,0.002,68769.0,68748.0,1.09229112]
[1722114850863,0.002,68769.0,68748.0,1.32502512]
[1722114851063,0.002,68769.0,68757.0,1.281757]
[1722114851241,0.002,68769.0,68757.0,1.51446]
[1722114851479,0.002,68769.0,68757.0,2.0248823]
[1722114851680,0.002,68769.0,68757.0,2.16602838]
[1722114851900,0.002,68769.0,68757.0,2.63252958]
[1722114852103,0.002,68769.0,68758.0,1.1870693]
[1722114852323,0.002,68769.0,68758.0,1.33888307]
[1722114852530,0.002,68769.0,68758.0,1.67158307]
[1722114852950,0.002,68769.0,68758.0,0.9559235]
[1722114853570,0.002,68769.0,68758.0,1.80938307]
[1722114853778,0.002,68769.0,68758.0,1.57668307]
[1722114853988,0.002,68769.0,68758.0,2.36497036]
[1722114854196,0.002,68769.0,68758.0,2.51522993]
[1722114854411,0.002,68769.0,68758.0,2.28097573]
[1722114854617,0.002,68769.0,68758.0,2.13071616]
[1722114854821,0.002,68769.0,68758.0,1.00476868]
[1722114855523,0.002,68769.0,68758.0,1.19598276]
[1722114855756,0.002,68769.0,68758.0,2.16015942]
[1722114855966,0.002,68769.0,68758.0,2.20443967]
[1722114856214,0.002,68769.0,68758.0,2.39285942]
[1722114856415,0.002,68769.0,68758.0,2.26015942]
[1722114856626,0.002,68769.0,68758.0,2.10989985]
[1722114857261,0.002,68769.0,68758.0,2.08058985]
[1722114857710,0.002,68769.0,68758.0,2.23084942]
[1722114857915,0.002,68769.0,68758.0,2.14105643]
[1722114858149,0.002,68769.0,68758.0,2.46336191]
[1722114858382,0.002,68769.0,68768.0,1.746997]
[1722114858597,0.0653,68768.0,68741.0,0.116378]
[1722114858813,0.0653,68768.0,68720.0,0.0656]
[1722114858814,0.0653,68753.0,68719.0,0.45077872]
[1722114859032,0.0019994,68736.0,68719.0,0.45077872]
[1722114859249,0.0653,68735.0,68710.0,0.45077872]
[1722114859471,0.0653,68735.0,68703.0,0.0656]
[1722114859697,0.0653,68735.0,68721.0,0.116411]
[1722114859698,0.0019994,68732.0,68721.0,0.116411]
[1722114859913,0.0653,68735.0,68710.0,0.07512979]
[1722114860123,0.0653,68735.0,68715.0,0.232843]
[1722114860340,0.0019994,68720.0,68710.0,0.07512979]
[1722114860549,0.0653,68735.0,68710.0,0.07512979]
[1722114860763,0.0653,68735.0,68715.0,0.232844]
[1722114860980,0.00605191,68736.0,68715.0,0.232844]
[1722114860981,0.0019994,68744.0,68732.0,0.07512979]
[1722114861193,0.45077872,68742.0,68741.0,0.07512979]
[1722114861410,0.0653,68751.0,68750.0,0.34909]
[1722114861620,0.0653,68751.0,68739.0,0.07512979]
[1722114861621,0.0653,68764.0,68740.0,0.0015542]
[1722114861830,0.0019994,68746.0,68740.0,0.0015542]
[1722114862056,0.0653,68764.0,68729.0,0.232797]
[1722114862057,0.0019994,68740.0,68729.0,0.232797]
[1722114862267,0.07512979,68763.0,68738.0,0.116383]
[1722114862268,0.0653,68739.0,68738.0,0.116383]
[1722114862478,0.0653,68739.0,68730.0,0.0015542]
[1722114862690,0.0653,68739.0,68736.0,0.116386]
[1722114862917,0.69151816,68769.0,68732.0,0.07512979]
[1722114862918,0.00807544,68769.0,68748.0,0.7]
[1722114863121,0.45077872,68768.0,68767.0,0.07512979]
[1722114863344,0.002,68769.0,68768.0,0.116333]
[1722114863560,0.00821,68776.0,68775.0,0.116321]
[1722114863816,0.00821,68776.0,68775.0,0.348963]
[1722114864021,0.00821,68776.0,68775.0,0.91233057]
[1722114864226,0.00821,68776.0,68775.0,0.14020235]
[1722114864441,0.00821,68776.0,68775.0,0.26473335]
[1722114864654,0.00821,68776.0,68775.0,0.57032126]
[1722114864866,0.03102995,68776.0,68775.0,1.03560526]
[1722114865437,0.00821,68776.0,68775.0,0.80296326]
[1722114865877,0.00821,68776.0,68775.0,0.89758679]
[1722114866067,0.00821,68776.0,68775.0,1.03560526]
[1722114866271,0.00821,68776.0,68775.0,0.80296326]
[1722114866470,0.00821,68776.0,68775.0,0.26254947]
[1722114866716,0.00821,68776.0,68775.0,0.14622847]
[1722114866829,0.00821,68776.0,68775.0,0.00821]
[1722114867031,0.00821,68776.0,68775.0,0.26190619]
[1722114867709,0.00821,68776.0,68775.0,0.49454819]
[1722114867920,0.00821,68776.0,68775.0,0.72719019]
[1722114867921,0.00321,68776.0,68775.0,0.72719019]
[1722114868360,0.00321,68776.0,68775.0,0.49454819]
[1722114868585,0.00321,68776.0,68775.0,0.72719019]
[1722114868586,0.02603068,68776.0,68775.0,0.72719019]
[1722114868815,0.00321,68776.0,68775.0,0.95983219]
[1722114869027,0.00321,68776.0,68775.0,0.72719019]
[1722114869237,0.00321,68776.0,68775.0,0.95983219]
[1722114869950,0.00321,68776.0,68775.0,1.65983219]
[1722114870925,9e-05,68780.0,68775.0,1.54351119]
[1722114871161,9e-05,68780.0,68776.0,0.05265999]
[1722114871162,0.1439,68779.0,68776.0,0.05265999]
[1722114871619,0.1439,68779.0,68775.0,0.00821]
[1722114871860,0.02482026,68779.0,68775.0,0.00821]
[1722114872103,0.02482026,68779.0,68778.0,0.58158]
[1722114872343,0.02482026,68779.0,68775.0,0.00821]
[1722114872344,0.002,68779.0,68775.0,0.00821]
[1722114872581,0.002,68779.0,68778.0,0.348948]
[1722114873058,0.1439,68779.0,68760.0,0.0015542]
[1722114873446,0.0019994,68749.0,68744.0,0.45077872]
[1722114873661,0.1419,68760.0,68745.0,0.023491]
[1722114873919,0.0019994,68746.0,68745.0,0.023491]
[1722114874158,0.0639,68746.0,68745.0,0.023491]
[1722114874402,0.0639,68746.0,68730.0,0.116396]
[1722114874637,0.0639,68746.0,68740.0,0.07512979]
[1722114875533,0.02283558,68745.0,68740.0,0.07512979]
[1722114875760,0.116344,68762.0,68740.0,0.07512979]
[1722114875761,0.0019994,68781.0,68744.0,0.1399]
[1722114875977,0.45077872,68769.0,68765.0,0.232674]
[1722114876186,0.51467872,68787.0,68763.0,0.07512979]
[1722114876402,0.51467872,68787.0,68765.0,0.00290813]
[1722114876860,0.0639,68787.0,68778.0,0.07512979]
[1722114877086,0.0639,68787.0,68778.0,0.42407779]
[1722114877521,0.0639,68787.0,68778.0,0.51498469]
[1722114877742,0.0639,68787.0,68749.0,0.30785979]
[1722114877743,0.0639,68760.0,68730.0,0.05]
[1722114877991,0.08,68759.0,68747.0,0.45077872]
[1722114878200,0.08,68759.0,68730.0,0.05]
[1722114878405,0.0019994,68757.0,68738.0,0.07512979]
[1722114878622,0.08,68759.0,68735.0,0.07512979]
[1722114878623,0.116355,68756.0,68735.0,0.07512979]
[1722114878853,0.0019994,68749.0,68735.0,0.07512979]
[1722114879130,0.08,68759.0,68735.0,0.07512979]
[1722114879597,0.13902979,68758.0,68730.0,0.05]
[1722114879819,0.0639,68734.0,68730.0,0.05]
[1722114880283,0.0639,68734.0,68723.0,0.232817]
[1722114880284,0.0639,68729.0,68708.0,0.07512979]
[1722114880494,0.0019994,68727.0,68715.0,0.07512979]
[1722114880695,0.0639,68729.0,68717.0,0.058328]
[1722114881135,0.0639,68729.0,68715.0,0.07512979]
[1722114881136,0.0654542,68729.0,68715.0,0.07512979]
[1722114881353,0.0019994,68721.0,68715.0,0.07512979]
[1722114881622,0.0019994,68721.0,68715.0,0.13346179]
[1722114882083,0.0019994,68721.0,68715.0,0.07512979]
[1722114882323,0.23873,68739.0,68715.0,0.07512979]
[1722114882324,0.0639,68735.0,68715.0,0.07512979]
[1722114882555,0.0639,68735.0,68734.0,0.11639]
[1722114882770,0.0639,68735.0,68731.0,0.07512979]
[1722114882982,0.0639,68735.0,68734.0,0.11639]
[1722114883205,0.0639,68735.0,68731.0,0.07512979]
[1722114883444,0.0639,68735.0,68724.0,0.07512979]
[1722114883445,0.08673746,68735.0,68724.0,0.07512979]
[1722114883664,0.02283746,68735.0,68734.0,0.814733]
[1722114883876,0.02283746,68735.0,68732.0,0.07512979]
[1722114883877,0.08,68753.0,68742.0,0.7]
[1722114884110,0.0639,68758.0,68757.0,0.348054]
[1722114884325,0.08,68763.0,68752.0,0.07512979]
[1722114884528,0.08,68763.0,68760.0,0.07512979]
[1722114885974,0.08,68763.0,68752.0,0.07512979]
[1722114886182,0.08,68763.0,68759.0,0.07512979]
[1722114887243,0.10282907,68763.0,68752.0,0.07512979]
[1722114887462,0.10282907,68763.0,68745.0,0.19149979]
[1722114887678,0.04091,68763.0,68745.0,0.07512979]
[1722114887908,0.04091,68763.0,68718.0,0.37334166]
[1722114887909,0.0639,68735.0,68708.0,0.07512979]
[1722114888113,0.0019994,68732.0,68729.0,0.45077872]
[1722114888318,0.0019994,68728.0,68714.0,0.058333]
[1722114888524,0.0639,68719.0,68716.0,0.07512979]
[1722114888746,0.0639,68719.0,68714.0,0.058333]
[1722114888958,0.0639,68719.0,68709.0,0.000924]
[1722114889191,0.0019994,68710.0,68709.0,0.000924]
[1722114889391,0.0639,68719.0,68709.0,0.059261]
[1722114889602,0.023,68718.0,68709.0,0.000924]
[1722114890646,0.139418,68718.0,68709.0,0.000924]
[1722114890847,0.02284764,68716.0,68709.0,0.000924]
[1722114891057,0.0816,68717.0,68709.0,0.000924]
[1722114891889,0.0639,68719.0,68709.0,0.000924]
[1722114891890,0.0019994,68711.0,68709.0,0.000924]
[1722114892089,0.0816,68716.0,68709.0,0.000924]
[1722114892090,0.0019994,68712.0,68709.0,0.000924]
[1722114892501,0.0019994,68711.0,68709.0,0.000924]
[1722114894272,0.0816,68716.0,68709.0,0.000924]
[1722114894446,0.02484499,68711.0,68709.0,0.000924]
[1722114895602,0.0019994,68711.0,68709.0,0.000924]
[1722114896689,0.0816,68716.0,68709.0,0.000924]
[1722114896910,0.0019994,68710.0,68709.0,0.000924]
[1722114897363,0.0816,68716.0,68709.0,0.000924]
[1722114897601,0.0019994,68710.0,68709.0,0.000924]
[1722114898056,0.0019994,68711.0,68709.0,0.000924]
[1722114898268,0.0816,68716.0,68709.0,0.000924]
[1722114898739,0.3512924,68710.0,68709.0,0.000924]
[1722114898962,0.116443,68703.0,68696.0,0.009009]
[1722114899191,0.0866,68702.0,68696.0,0.009009]
[1722114899904,0.0019994,68697.0,68696.0,0.009009]
[1722114900173,0.0800994,68697.0,68696.0,0.009009]
[1722114900416,0.0781,68697.0,68696.0,0.009009]
[1722114900644,0.1030994,68697.0,68696.0,0.009009]
[1722114900878,0.1030994,68697.0,68696.0,0.008809]
[1722114901105,0.0636,68702.0,68696.0,0.008809]
[1722114901333,0.00112399,68712.0,68701.0,0.07512979]
[1722114901334,0.0019994,68706.0,68701.0,0.07512979]
[1722114901561,0.0019994,68708.0,68696.0,0.08393879]
[1722114901797,0.1436994,68697.0,68696.0,0.008809]
[1722114902091,0.1436994,68697.0,68689.0,0.009009]
[1722114902092,0.349374,68694.0,68689.0,0.009009]
[1722114902318,0.06444136,68696.0,68689.0,0.009009]
[1722114902554,0.3513734,68694.0,68689.0,0.009009]
[1722114902781,0.3513734,68694.0,68680.0,2.0]
[1722114902782,0.1,68694.0,68680.0,1.102]
[1722114903013,0.0245542,68693.0,68680.0,1.102]
[1722114903276,0.0245542,68693.0,68654.0,0.29785]
[1722114903277,0.2954,68687.0,68653.0,0.12243159]
[1722114903505,0.0015542,68688.0,68651.0,0.002]
[1722114903506,0.0636,68681.0,68662.0,0.07512979]
[1722114903726,0.0636,68681.0,68656.0,0.058378]
[1722114903727,0.1417,68662.0,68656.0,0.058378]
[1722114904068,0.1417,68662.0,68651.0,0.002]
[1722114904069,0.1436994,68662.0,68651.0,0.002]
[1722114904288,0.1666994,68662.0,68651.0,0.002]
[1722114904514,0.2666994,68662.0,68651.0,0.002]
[1722114904738,0.2647,68662.0,68651.0,0.002]
[1722114904957,0.1436994,68662.0,68651.0,0.002]
[1722114905196,0.1436994,68662.0,68654.0,0.07512979]
[1722114905417,0.1436994,68662.0,68651.0,0.002]
[1722114905702,0.1436994,68662.0,68655.0,0.07512979]
[1722114905937,0.17268047,68662.0,68651.0,0.002]
[1722114906415,0.52221747,68662.0,68651.0,0.002]
[1722114906648,0.17268047,68662.0,68651.0,0.002]
[1722114906890,0.19554754,68662.0,68651.0,0.002]
[1722114907169,0.0019994,68652.0,68651.0,0.002]
[1722114907408,0.1821284,68652.0,68651.0,0.002]
[1722114907644,0.1185474,68641.0,68640.0,0.00802]
[1722114907914,0.0019994,68641.0,68640.0,0.00802]
[1722114908144,0.022872,68641.0,68640.0,0.00802]
[1722114908663,0.1417,68651.0,68640.0,0.00802]
[1722114908888,0.0015542,68677.0,68640.0,0.00802]
[1722114908889,0.0019994,68654.0,68650.0,0.07512979]
[1722114909172,0.0019994,68655.0,68650.0,0.07512979]
[1722114909404,0.0637,68669.0,68645.0,0.07512979]
[1722114909633,0.0019994,68663.0,68645.0,0.07512979]
[1722114909887,0.0019994,68663.0,68635.0,0.50764728]
[1722114909888,0.0019994,68650.0,68635.0,0.50764728]
[1722114910116,0.07512979,68660.0,68635.0,0.116557]
[1722114910117,0.0019994,68644.0,68635.0,0.116557]
[1722114910376,0.0019994,68632.0,68631.0,0.002]
[1722114910601,0.00291349,68643.0,68631.0,0.002]
[1722114910602,0.0015542,68639.0,68631.0,0.002]